bitfinex/quotes_ETHUSD_20240922
["timestamp","ask_amount","ask_price","bid_price","bid_amount"]
[1726966141391,2.54309,2616.4,2616.3,1.0]
[1726966142600,2.3119,2616.4,2616.3,1.0]
[1726966144966,7.66501256,2617.0,2616.4,3.0]
[1726966144967,2.3245,2616.9,2616.4,3.0]
[1726966145168,2.3245,2616.9,2616.3,1.56160194]
[1726966145374,2.42004542,2616.9,2616.3,1.0]
[1726966145579,2.3245,2616.9,2616.3,1.0]
[1726966145760,2.3245,2616.8,2616.3,1.0]
[1726966145966,2.3245,2616.8,2616.4,3.0]
[1726966146267,2.3245,2616.8,2616.4,0.63803882]
[1726966147068,2.3245,2616.8,2616.4,5.24568143]
[1726966147968,2.3245,2616.8,2616.4,0.56160194]
[1726966148310,2.3245,2616.8,2616.5,0.21503408]
[1726966148514,2.3245,2616.8,2616.3,1.0]
[1726966149904,2.52664867,2616.7,2616.3,1.0]
[1726966150117,2.4311,2616.7,2616.3,1.0]
[1726966151891,2.4311,2616.7,2616.4,1.07390662]
[1726966152089,2.4311,2617.0,2616.5,0.21503376]
[1726966152303,2.4311,2617.0,2616.5,0.85306288]
[1726966152806,2.4311,2617.0,2616.6,3.0]
[1726966154730,2.4311,2617.0,2616.6,3.56160194]
[1726966157037,2.4311,2617.0,2616.7,0.07642721]
[1726966157187,0.0382256,2617.1,2616.9,3.0]
[1726966157388,0.0382256,2617.1,2617.0,6.7588]
[1726966157589,0.0382256,2617.1,2617.0,2.4608]
[1726966158336,0.0382256,2617.1,2616.9,3.0]
[1726966160234,0.0382256,2617.1,2617.0,0.56160194]
[1726966160438,0.0382256,2617.1,2617.0,1.2901225]
[1726966161541,0.0382256,2617.1,2617.0,0.72852056]
[1726966163535,0.0382256,2617.1,2617.0,1.36654011]
[1726966163837,0.0382256,2617.1,2617.0,1.2901225]
[1726966164041,0.0382256,2617.1,2617.0,40.18460318]
[1726966164200,0.0382256,2617.1,2617.0,40.74856717]
[1726966167537,0.0382256,2617.1,2617.0,41.29856717]
[1726966168135,0.0382256,2617.1,2617.0,40.74856717]
[1726966168617,0.0382256,2617.1,2617.0,37.20145017]
[1726966168915,0.0382256,2617.1,2617.0,26.7209295]
[1726966169314,0.0382256,2617.1,2617.0,25.6347615]
[1726966170624,0.0382256,2617.1,2617.0,26.14706618]
[1726966174806,0.0382256,2617.1,2617.0,25.6347615]
[1726966175447,0.0382256,2617.1,2617.0,20.16643394]
[1726966179037,2.5191256,2617.1,2617.0,25.79333394]
[1726966180255,2.5191256,2617.1,2617.0,9.73643394]
[1726966182065,2.5191256,2617.1,2617.0,0.56160194]
[1726966182768,2.5191256,2617.1,2616.1,4.0445142]
[1726966182947,2.5191256,2617.1,2616.2,0.51230468]
[1726966183430,2.5191256,2617.1,2616.4,5.95935037]
[1726966184058,2.5191256,2617.1,2616.5,3.0]
[1726966185177,0.09553432,2617.0,2616.1,0.49693528]
[1726966185357,0.09553432,2617.0,2615.9,0.51230468]
[1726966186336,0.55,2616.9,2615.9,0.51230468]
[1726966186671,0.09556116,2616.8,2615.9,0.51230468]
[1726966186872,0.35117528,2616.8,2615.9,0.51230468]
[1726966187374,2.26190528,2616.8,2615.9,0.51230468]
[1726966187535,0.35117528,2616.8,2615.6,3.0]
[1726966187739,0.35117528,2616.8,2615.7,0.51230468]
[1726966187740,0.25561412,2616.8,2615.7,0.51230468]
[1726966187945,0.25561412,2616.8,2615.8,0.77328794]
[1726966188146,2.4038,2616.7,2615.9,0.51230468]
[1726966189282,2.49936669,2616.6,2615.9,0.51230468]
[1726966189457,2.4038,2616.6,2615.9,0.51230468]
[1726966189653,2.66974141,2616.6,2615.9,0.51230468]
[1726966192971,2.4038,2616.6,2615.9,4.15949073]
[1726966193281,2.4038,2616.6,2616.0,3.0]
[1726966193484,2.4038,2616.6,2616.0,3.51230468]
[1726966194199,2.4038,2616.6,2616.0,3.5887497]
[1726966194351,2.4038,2616.6,2616.0,3.51230468]
[1726966195512,2.4038,2616.6,2616.1,0.7656426]
[1726966198114,2.4038,2616.6,2616.2,3.64718605]
[1726966198314,2.4038,2616.6,2616.3,3.0]
[1726966199177,2.4038,2616.6,2616.3,3.07643376]
[1726966199476,2.4038,2616.6,2616.3,3.0]
[1726966199679,2.4038,2616.6,2616.4,0.66471861]
[1726966200471,2.4038,2616.6,2615.8,4.15949073]
[1726966200677,2.4038,2616.6,2615.9,3.0]
[1726966202015,2.4038,2616.6,2615.9,3.51230468]
[1726966202186,2.4038,2616.6,2616.1,3.64718605]
[1726966202518,2.4038,2616.6,2616.2,3.51230468]
[1726966202721,2.4038,2616.6,2616.3,0.71594907]
[1726966205428,2.4038,2616.6,2615.9,3.0]
[1726966206216,2.4038,2616.6,2616.0,0.51230468]
[1726966211603,2.2221,2616.6,2616.0,0.51230468]
[1726966215817,0.09555796,2616.5,2615.9,3.0]
[1726966216012,2.4287,2616.4,2615.7,0.51230468]
[1726966216947,2.4287,2616.4,2615.7,1.00923988]
[1726966217443,2.67157,2616.4,2615.7,1.00923988]
[1726966217609,2.67157,2616.4,2615.7,0.51230468]
[1726966218217,2.7671395,2616.4,2615.7,0.51230468]
[1726966218424,2.67157,2616.4,2615.7,0.51230468]
[1726966221133,2.4287,2616.2,2615.6,3.0]
[1726966223071,2.4287,2616.2,2615.6,4.00923988]
[1726966223225,2.4287,2616.2,2615.7,1.00923988]
[1726966227666,2.4287,2616.2,2615.8,3.64718605]
[1726966228830,2.4287,2616.2,2615.7,1.00923988]
[1726966229034,2.4287,2616.2,2615.7,0.51230468]
[1726966229257,2.4287,2616.2,2615.6,0.77328837]
[1726966229473,2.4287,2616.2,2615.5,3.64718605]
[1726966231532,2.4287,2616.2,2615.5,4.15949073]
[1726966232157,2.4287,2616.2,2615.6,1.00923988]
[1726966232336,2.4287,2616.2,2615.7,0.07645669]
[1726966232537,2.4287,2616.2,2615.9,3.64718605]
[1726966232732,2.4287,2616.2,2616.0,0.52758598]
[1726966235678,2.4287,2616.2,2616.0,0.52758598]
[1726966236271,2.3944,2616.9,2616.1,25.76837246]
[1726966236452,2.3944,2616.9,2616.2,0.07643119]
[1726966236667,2.3944,2616.9,2616.3,1.08567215]
[1726966236899,2.3944,2616.9,2616.6,3.64718605]
[1726966237196,2.3944,2616.9,2616.7,0.05542463]
[1726966238997,2.3944,2616.9,2616.3,1.00923988]
[1726966239182,2.3944,2616.9,2616.8,0.05525605]
[1726966239381,2.3944,2616.9,2616.3,1.00923988]
[1726966239563,2.3944,2616.9,2616.8,0.05525605]
[1726966239764,2.63766256,2616.9,2616.3,0.51230468]
[1726966240077,2.63766256,2616.9,2616.8,0.05525605]
[1726966240255,2.63766256,2616.9,2616.1,5.8688532]
[1726966240560,2.3944,2616.9,2616.2,1.06511498]
[1726966240756,2.3944,2616.9,2616.3,0.07642716]
[1726966240959,2.3944,2616.9,2616.4,1.00923988]
[1726966241257,2.3944,2616.9,2616.4,1.06489506]
[1726966241463,2.3944,2616.9,2616.5,3.64718605]
[1726966241797,2.3944,2616.9,2616.6,0.52665695]
[1726966242000,2.3944,2616.9,2616.6,0.05544884]
[1726966242365,2.3944,2616.9,2616.0,1.00923988]
[1726966242557,2.3944,2616.9,2616.7,0.05530057]
[1726966242757,2.3944,2616.9,2616.2,3.0]
[1726966243405,2.3944,2616.9,2616.3,0.05571326]
[1726966243702,2.3944,2616.9,2616.3,1.40160017]
[1726966243991,2.3944,2616.9,2616.4,0.51230468]
[1726966244403,2.3944,2616.9,2616.5,0.0555069]
[1726966246095,2.3944,2616.9,2616.3,0.83358223]
[1726966246267,2.3944,2616.9,2616.6,0.05540373]
[1726966246468,2.3944,2616.9,2616.3,0.83358223]
[1726966246684,2.3944,2616.9,2616.7,0.05530057]
[1726966246886,2.3944,2616.9,2616.4,0.74807683]
[1726966247105,2.3944,2616.9,2616.8,0.05519741]
[1726966247266,2.3944,2616.9,2616.4,0.74807683]
[1726966247792,2.3944,2616.9,2616.5,0.0553693]
[1726966248800,2.35874199,2616.8,2616.5,0.0553693]
[1726966248973,2.2632,2616.8,2616.5,0.0553693]
[1726966249177,2.2632,2616.8,2616.2,3.0]
[1726966249412,2.2632,2616.8,2616.6,0.05526613]
[1726966249576,2.2632,2616.8,2616.3,0.4969352]
[1726966249770,2.2632,2616.8,2616.7,0.05516297]
[1726966249971,2.2632,2616.8,2616.4,0.51230468]
[1726966250172,2.2632,2616.8,2616.7,0.05516297]
[1726966250385,2.2632,2616.8,2616.4,0.51230468]
[1726966250599,2.2632,2616.8,2616.7,0.05516297]
[1726966250802,2.2632,2616.8,2616.4,0.51230468]
[1726966251005,2.2632,2616.8,2616.7,0.05516297]
[1726966251219,2.2632,2616.8,2616.4,0.51230468]
[1726966251422,2.2632,2616.8,2616.7,0.05516297]
[1726966251708,2.2632,2616.8,2616.4,0.51230468]
[1726966251917,2.2632,2616.8,2616.7,0.05516297]
[1726966252080,2.2632,2616.8,2616.4,0.51230468]
[1726966252409,2.2632,2616.8,2616.4,1.28559114]
[1726966252715,2.2632,2616.8,2616.5,0.0553693]
[1726966255086,2.2632,2616.8,2616.6,0.35270059]
[1726966255286,2.2632,2616.8,2616.7,0.35270059]
[1726966255485,2.2632,2616.8,2616.7,0.40786356]
[1726966257125,2.2632,2616.8,2616.7,0.05516297]
[1726966257284,2.2632,2616.8,2616.7,0.40786356]
[1726966257479,2.2632,2616.8,2616.7,0.35270059]
[1726966257679,2.2632,2616.8,2616.7,0.05517197]
[1726966258015,2.2632,2616.8,2616.7,0.35270059]
[1726966258217,2.2632,2616.8,2616.7,0.40787256]
[1726966260077,2.2632,2616.8,2616.7,0.05517197]
[1726966260278,2.2632,2616.8,2616.7,0.40787256]
[1726966260478,2.2632,2616.8,2616.7,0.35270059]
[1726966260791,2.2632,2616.8,2616.7,0.40776048]
[1726966262696,2.2632,2616.8,2616.7,0.05519677]
[1726966262890,2.2632,2616.8,2616.6,0.35256371]
[1726966263220,2.2632,2616.8,2616.7,0.40776048]
[1726966263389,2.2632,2616.8,2616.7,0.05519677]
[1726966263590,2.2632,2616.8,2616.7,0.40776048]
[1726966263797,2.2632,2616.8,2616.5,0.35256371]
[1726966263998,2.2632,2616.8,2616.7,0.05519677]
[1726966264190,2.2632,2616.8,2616.7,0.35256371]
[1726966264397,2.2632,2616.8,2616.7,0.40776048]
[1726966264595,2.2632,2616.8,2616.7,0.05519677]
[1726966265008,2.2632,2616.8,2616.5,0.35256371]
[1726966265311,2.2632,2616.8,2616.7,0.05519677]
[1726966265522,2.2632,2616.8,2616.7,0.35256371]
[1726966265720,2.2632,2616.8,2616.7,0.40776048]
[1726966265906,2.48952,2616.8,2616.7,0.05519677]
[1726966266416,2.48952,2616.8,2616.0,0.07644605]
[1726966266621,2.2632,2616.8,2616.1,4.65642593]
[1726966266804,2.2632,2616.8,2616.1,4.71224179]
[1726966267296,2.2632,2616.8,2616.2,3.0]
[1726966267518,2.2632,2616.8,2616.2,3.51230468]
[1726966267719,2.2632,2616.8,2616.3,0.05560947]
[1726966268016,2.2632,2616.8,2616.2,3.51230468]
[1726966268225,2.2632,2616.8,2616.4,0.05550628]
[1726966268425,2.2632,2616.8,2616.3,0.05560947]
[1726966268606,2.2632,2616.8,2616.7,0.5]
[1726966269221,2.2632,2616.8,2616.7,0.55525091]
[1726966272847,2.4192,2617.0,2616.7,0.55525091]
[1726966272989,2.4192,2617.0,2616.7,1.410776]
[1726966280537,2.4192,2617.0,2616.7,1.05525091]
[1726966289971,0.0382256,2617.1,2616.9,1.68312624]
[1726966290199,0.0382256,2617.1,2617.0,0.0548332]
[1726966290339,0.0382256,2617.1,2617.0,3.56682368]
[1726966290775,0.0382256,2617.1,2617.0,0.56682368]
[1726966291083,2.3515256,2617.1,2617.0,0.0548332]
[1726966291249,2.59623073,2617.1,2617.0,0.0548332]
[1726966291652,2.69177807,2617.1,2616.7,1.0]
[1726966292176,2.69177807,2617.1,2616.8,0.05499666]
[1726966292387,2.69177807,2617.1,2616.7,1.0]
[1726966292876,2.69177807,2617.1,2616.8,0.05499666]
[1726966293180,2.3133,2616.9,2616.7,1.0]
[1726966293400,2.3133,2616.9,2616.8,0.05499666]
[1726966293854,2.3133,2616.9,2616.7,1.0]
[1726966294059,2.3133,2616.9,2616.8,0.05499666]
[1726966294446,2.40885318,2616.9,2616.7,1.0]
[1726966294667,2.5811031,2616.8,2616.7,1.0]
[1726966295802,2.3133,2616.8,2616.7,1.0]
[1726966297299,2.3515256,2617.1,2616.7,1.0]
[1726966298086,2.3515256,2617.1,2616.7,4.0]
[1726966298768,2.3515256,2617.1,2616.9,3.0]
[1726966299099,2.3515256,2617.1,2616.7,1.0]
[1726966299100,2.3515256,2617.1,2616.8,0.4969352]
[1726966299316,2.3515256,2617.1,2616.8,0.69782777]
[1726966299612,0.0382256,2617.1,2616.8,0.77425582]
[1726966299780,0.0382256,2617.1,2616.9,0.51199048]
[1726966299979,0.0382256,2617.1,2617.0,0.4969352]
[1726966300513,0.0382256,2617.1,2617.0,5.18006144]
[1726966300663,0.0382256,2617.1,2617.0,26.48776317]
[1726966300864,0.0382256,2617.8,2617.0,26.48776317]
[1726966300865,1.3897512,2617.8,2617.0,26.48776317]
[1726966301124,1.3897512,2617.8,2617.4,1.68312624]
[1726966301865,1.3897512,2617.8,2617.1,3.0]
[1726966302070,0.09551973,2617.7,2617.2,0.77389401]
[1726966302618,1.3897512,2617.8,2617.2,0.77389401]
[1726966302905,1.3897512,2617.8,2617.1,0.07641578]
[1726966303602,1.3897512,2617.8,2617.3,3.0]
[1726966305113,0.09551325,2617.7,2617.0,0.4969352]
[1726966307007,0.09551325,2617.7,2617.1,0.05447306]
[1726966307168,1.3897512,2617.8,2617.1,3.05447306]
[1726966307373,1.3897512,2617.8,2617.2,1.2754233]
[1726966307581,1.3897512,2617.8,2617.3,0.05426908]
[1726966307917,1.3897512,2617.8,2617.2,1.78741378]
[1726966308094,1.3897512,2617.8,2617.4,0.05416372]
[1726966308308,1.3897512,2617.8,2617.3,0.05426682]
[1726966308486,1.3897512,2617.8,2617.5,0.05406062]
[1726966308678,1.3897512,2617.8,2617.4,0.05416372]
[1726966308870,1.3897512,2617.8,2617.6,0.05395752]
[1726966309073,1.3897512,2617.8,2617.5,0.05406062]
[1726966309316,1.3897512,2617.8,2617.7,0.05385444]
[1726966309511,1.3897512,2617.8,2617.6,0.05395752]
[1726966309689,1.3897512,2617.8,2617.7,0.05385444]
[1726966310013,1.3897512,2617.8,2617.3,0.49180912]
[1726966310216,1.3897512,2617.8,2617.7,0.05385444]
[1726966310421,1.3897512,2617.8,2617.3,0.49180912]
[1726966310717,1.3897512,2617.8,2617.7,0.05385444]
[1726966310880,1.3897512,2617.8,2617.3,0.49180912]
[1726966311082,1.3897512,2617.8,2617.7,0.05385444]
[1726966311314,1.3897512,2617.8,2617.3,0.49180912]
[1726966311518,1.3897512,2617.8,2617.7,0.05385444]
[1726966311690,1.3897512,2617.8,2617.3,0.49180912]
[1726966312217,1.3897512,2617.8,2617.4,0.05416372]
[1726966312520,2.3094,2617.6,2617.4,0.05416372]
[1726966312689,0.09551842,2617.5,2617.1,3.0]
[1726966313018,2.3094,2617.6,2617.1,3.4969352]
[1726966313219,2.3094,2617.6,2617.1,4.00892568]
[1726966313422,2.3094,2617.6,2617.2,0.76539933]
[1726966314291,2.3094,2617.6,2617.1,4.00892568]
[1726966317297,2.3094,2617.4,2616.7,1.0]
[1726966317487,0.0955253,2617.5,2616.7,1.0]
[1726966317488,2.40493302,2617.3,2616.7,1.0]
[1726966317803,2.40493302,2617.3,2616.7,1.51199048]
[1726966318014,2.3094,2617.3,2616.8,1.00892568]
[1726966318211,2.54034,2617.3,2616.8,1.00892568]
[1726966319516,2.3094,2617.3,2616.8,1.00892568]
[1726966320825,2.45413406,2617.2,2616.7,1.0]
[1726966321949,2.3586,2617.2,2616.7,1.0]
[1726966322101,2.3586,2617.2,2616.8,0.05492225]
[1726966322416,2.59446,2617.2,2616.9,0.0548191]
[1726966322585,2.59446,2617.2,2616.7,2.00892568]
[1726966322787,2.59446,2617.2,2616.8,0.05492225]
[1726966322983,0.09554205,2617.1,2616.7,2.00892568]
[1726966323186,2.3586,2617.0,2616.8,0.05492225]
[1726966323496,2.45414711,2616.9,2616.4,3.0]
[1726966323900,2.3586,2616.9,2616.4,3.0]
[1726966324334,2.3586,2616.9,2616.4,3.51199048]
[1726966326188,2.3586,2616.9,2616.5,1.00892568]
[1726966329845,2.3586,2616.9,2616.5,4.00892568]
[1726966330144,2.3586,2616.9,2616.2,3.0]
[1726966330145,2.59446,2616.9,2616.2,3.0]
[1726966330309,2.3824,2616.7,2616.2,3.0]
[1726966330513,2.3824,2616.5,2616.0,1.00892568]
[1726966331535,2.3824,2616.8,2616.4,1.68327683]
[1726966331739,2.3824,2616.8,2616.4,1.00892568]
[1726966331897,2.3824,2616.8,2616.6,1.68327683]
[1726966336822,2.3824,2616.8,2616.7,0.05346421]
[1726966338962,2.3824,2616.8,2616.5,3.0]
[1726966339260,2.3824,2616.8,2616.6,0.05357414]
[1726966342126,2.3824,2617.3,2616.7,4.68327683]
[1726966342372,2.3824,2618.0,2617.2,1.68327683]
[1726966342526,2.3824,2618.0,2616.9,3.0]
[1726966342527,2.3824,2618.0,2617.6,1.68327683]
[1726966342725,2.3824,2618.0,2617.4,3.0]
[1726966342935,2.3824,2618.0,2617.7,0.05243979]
[1726966343224,2.3824,2618.0,2617.3,1.68327683]
[1726966343430,2.3824,2618.0,2617.5,1.68327683]
[1726966343648,2.3824,2618.0,2617.6,0.05254288]
[1726966346382,2.3824,2618.0,2617.4,3.0]
[1726966346590,2.3824,2618.0,2617.7,0.05243979]
[1726966346870,2.3824,2618.0,2617.8,0.05233672]
[1726966347029,2.3824,2618.0,2617.4,3.0]
[1726966347232,2.3824,2618.0,2617.5,0.71705796]
[1726966352406,0.0955027,2617.9,2617.5,0.05264597]
[1726966352905,2.2892,2617.8,2617.3,3.0]
[1726966353100,2.2892,2617.8,2617.6,0.05216076]
[1726966353252,2.2892,2617.8,2617.3,3.0]
[1726966353470,2.2892,2617.8,2617.7,0.05205767]
[1726966353658,2.2892,2617.8,2617.3,3.0]
[1726966353858,2.2892,2617.8,2617.7,0.05210262]
[1726966354099,2.2892,2617.8,2617.3,3.0]
[1726966354390,2.2892,2617.8,2617.7,0.05210262]
[1726966354555,2.51812,2617.8,2617.3,3.0]
[1726966354757,0.0955197,2617.7,2617.3,3.0]
[1726966354986,2.2892,2617.6,2617.3,3.0]
[1726966357106,2.2892,2617.6,2617.1,3.0]
[1726966357330,2.2892,2617.6,2617.1,3.51199048]
[1726966361599,2.2892,2617.6,2617.1,4.27689912]
[1726966363418,0.09552552,2617.5,2617.1,3.51199048]
[1726966363829,2.2892,2617.6,2617.1,3.51199048]
[1726966366367,2.2892,2617.4,2616.5,5.69961285]
[1726966366527,2.2892,2617.2,2616.6,0.51199048]
[1726966366721,2.2892,2617.2,2616.6,1.00496651]
[1726966366927,2.2892,2617.2,2616.7,0.05318094]
[1726966367963,2.2892,2617.2,2616.8,1.68290599]
[1726966368165,2.2892,2617.2,2616.8,2.6878725]
[1726966368369,2.2892,2617.2,2616.9,3.05297464]
[1726966368936,2.2892,2617.2,2617.0,1.68290599]
[1726966369143,2.9595,2617.9,2617.0,2.24776798]
[1726966369434,2.50502513,2617.8,2617.0,2.24776798]
[1726966371051,0.55,2617.7,2617.0,0.05287151]
[1726966371352,2.4095,2617.5,2617.0,0.05287151]
[1726966371551,2.4095,2617.3,2616.8,1.68290599]
[1726966372040,2.4095,2617.3,2616.9,0.05297464]
[1726966373580,2.4095,2617.3,2617.0,1.68290599]
[1726966373773,2.4095,2617.3,2617.0,4.68290599]
[1726966374075,2.4095,2617.3,2617.1,0.05288975]
[1726966379867,2.4095,2617.3,2616.6,0.98521651]
[1726966380061,2.4095,2617.3,2616.8,1.68290599]
[1726966380346,2.4095,2617.3,2616.9,0.05308253]
[1726966380747,2.4095,2617.3,2616.9,0.52668138]
[1726966380961,2.4095,2617.6,2617.0,0.49297603]
[1726966381141,2.4095,2617.6,2617.0,0.54595542]
[1726966381573,0.0955267,2617.5,2617.0,3.05297939]
[1726966381780,2.4095,2617.4,2617.0,0.05297939]
[1726966381951,0.09553266,2617.3,2617.0,0.05297939]
[1726966382152,0.09553266,2617.3,2616.6,0.49297603]
[1726966382351,0.09553266,2617.3,2617.1,0.05287401]
[1726966382558,0.09553266,2617.3,2616.6,0.98521651]
[1726966382795,0.09553266,2617.3,2617.2,0.05277089]
[1726966382971,0.09553266,2617.3,2616.8,1.68290599]
[1726966383398,0.09553266,2617.3,2616.9,0.05308028]
[1726966384682,2.4095,2617.4,2616.9,0.05308028]
[1726966386014,0.09553298,2617.3,2616.9,0.05308028]
[1726966386602,2.4095,2617.2,2616.9,0.05308028]
[1726966390190,0.09553281,2617.1,2616.9,0.05308028]
[1726966390629,2.4095,2617.2,2616.9,0.05308028]
[1726966391706,0.09553287,2617.1,2616.9,0.05308028]
[1726966392105,0.09553341,2617.1,2616.9,0.05308028]
[1726966392298,2.4095,2617.2,2616.9,0.05308028]
[1726966394689,0.09553359,2617.1,2616.9,0.05308028]
[1726966394940,2.4095,2617.2,2616.9,0.05308028]
[1726966395305,5.0,2617.0,2616.9,0.05308028]
[1726966399733,5.0,2617.0,2616.9,0.54605631]
[1726966400254,5.0,2617.0,2616.9,1.06895254]
[1726966400432,5.0,2617.0,2616.9,32.29186602]
[1726966403471,5.0,2617.0,2616.9,32.88821666]
[1726966403651,2.2777,2617.7,2616.9,27.93954335]
[1726966403857,2.2777,2617.7,2617.4,1.68290599]
[1726966404067,2.50547,2617.7,2617.5,0.05070798]
[1726966405348,2.50547,2617.7,2617.2,1.68290599]
[1726966405545,2.50547,2617.7,2617.6,0.05060489]
[1726966405895,2.50547,2617.7,2617.6,0.05054196]
[1726966406055,2.50547,2617.7,2617.2,1.68290599]
[1726966406262,2.50547,2617.7,2617.3,0.05085125]
[1726966406461,0.250547,2617.6,2617.2,1.68290599]
[1726966406665,0.250547,2617.6,2617.3,0.05085125]
[1726966406966,0.250547,2617.6,2617.2,1.68290599]
[1726966407146,0.250547,2617.6,2617.4,0.05074815]
[1726966407352,0.250547,2617.6,2617.3,0.05085125]
[1726966407569,0.250547,2617.6,2617.5,0.05064505]
[1726966407766,0.250547,2617.6,2617.4,0.05074815]
[1726966407969,0.250547,2617.6,2617.5,0.05064505]
[1726966408287,0.250547,2617.6,2617.2,2.18290599]
[1726966408510,2.2777,2617.7,2617.3,0.05085125]
[1726966409092,2.2777,2617.7,2617.4,0.05074815]
[1726966409253,2.3841,2617.5,2617.2,0.5]
[1726966409451,2.3841,2617.5,2617.3,0.05077483]
[1726966409823,2.3841,2617.5,2617.2,0.5]
[1726966409951,2.62251,2617.5,2617.4,0.05067172]
[1726966410152,2.62251,2617.5,2617.3,0.05077483]
[1726966410366,2.62251,2617.5,2617.2,0.5]
[1726966410567,2.62251,2617.5,2617.4,0.05067172]
[1726966410761,2.62251,2617.5,2617.3,0.05077483]
[1726966410961,2.62251,2617.5,2617.2,0.5]
[1726966411178,2.62251,2617.5,2617.4,0.05067172]
[1726966411363,2.62251,2617.5,2617.3,1.73368082]
[1726966411563,2.3841,2617.5,2617.4,0.05067172]
[1726966414257,2.3841,2617.5,2617.2,0.5]
[1726966414501,2.3841,2617.5,2617.3,0.0507973]
[1726966414825,2.3841,2617.5,2617.2,0.5]
[1726966414973,2.3841,2617.5,2617.4,0.05069419]
[1726966415295,2.62251,2617.5,2617.3,0.0507973]
[1726966415460,2.3841,2617.5,2617.4,0.05069419]
[1726966415834,2.3841,2617.5,2617.2,0.5]
[1726966415955,2.3841,2617.5,2617.4,0.05069419]
[1726966416157,2.3841,2617.5,2617.3,0.0507973]
[1726966416457,2.3841,2617.5,2617.4,0.05069419]
[1726966416658,2.3841,2617.5,2617.2,0.5]
[1726966416997,2.3841,2617.5,2617.3,0.0507973]
[1726966417359,2.3841,2617.5,2617.2,0.5]
[1726966417558,2.3841,2617.5,2617.4,0.05069419]
[1726966417904,2.62251,2617.5,2617.4,0.05069419]
[1726966418057,2.62251,2617.5,2617.2,0.5]
[1726966418263,2.62251,2617.5,2617.3,0.0507973]
[1726966418461,2.62251,2617.5,2617.2,0.5]
[1726966418703,2.62251,2617.5,2617.3,0.0507973]
[1726966418991,2.62251,2617.5,2617.2,0.5]
[1726966419202,2.62251,2617.5,2617.4,0.05069419]
[1726966419363,2.62251,2617.5,2617.3,0.0507973]
[1726966419558,2.62251,2617.5,2617.4,0.05069419]
[1726966420264,2.62251,2617.5,2617.2,0.5]
[1726966420469,2.62251,2617.5,2617.3,0.05079282]
[1726966420803,2.62251,2617.5,2617.2,0.5]
[1726966421128,2.62251,2617.5,2617.3,0.05079282]
[1726966421510,2.62251,2617.5,2617.2,0.5]
[1726966421825,2.62251,2617.5,2617.4,0.05068746]
[1726966422002,2.62251,2617.5,2617.3,0.05079057]
[1726966422186,2.62251,2617.5,2617.4,0.05068746]
[1726966422583,0.23841,2617.5,2617.4,1.68290599]
[1726966422809,2.3841,2617.7,2617.4,1.73359345]
[1726966426991,0.09551533,2617.6,2617.4,0.05068746]
[1726966427201,2.3841,2617.5,2617.4,0.05068746]
[1726966427428,2.3841,2617.5,2617.2,0.5]
[1726966427798,2.3841,2617.5,2617.3,0.05068266]
[1726966428189,2.3841,2617.5,2617.2,0.5]
[1726966428385,2.3841,2617.5,2617.4,0.05057956]
[1726966428613,2.62251,2617.5,2617.2,0.5]
[1726966428932,2.3841,2617.5,2617.3,0.05068266]
[1726966429310,2.3841,2617.5,2617.2,2.18290599]
[1726966429505,2.3841,2617.5,2617.3,0.05068266]
[1726966429728,2.3841,2617.5,2617.2,2.18290599]
[1726966430027,2.3841,2617.5,2617.4,0.05063349]
[1726966430507,2.3841,2617.5,2617.2,2.18290599]
[1726966430707,2.3841,2617.5,2617.3,0.05073659]
[1726966431035,2.3841,2617.5,2617.2,2.18290599]
[1726966431331,2.2607,2618.0,2617.4,1.68290599]
[1726966431533,3.0992105,2618.0,2617.4,1.68290599]
[1726966431707,2.3562105,2618.0,2617.5,0.05053039]
[1726966431912,2.3562105,2618.0,2617.4,1.68290599]
[1726966432531,2.2607,2618.0,2617.4,1.68290599]
[1726966433632,2.2607,2618.0,2617.8,1.68290599]
[1726966433996,2.2607,2618.3,2617.8,1.68290599]
[1726966434195,2.2607,2618.3,2618.2,1.68290599]
[1726966434429,0.0382256,2618.6,2617.4,0.59605695]
[1726966434430,2.2607,2618.5,2617.4,0.59605695]
[1726966434600,2.2607,2618.5,2618.0,1.68290599]
[1726966434803,0.22989256,2618.4,2618.0,1.68290599]
[1726966435030,0.22989256,2618.4,2618.1,0.0481714]
[1726966439102,0.22989256,2618.4,2618.0,1.68290599]
[1726966439303,0.22989256,2618.4,2618.1,0.04804782]
[1726966440003,0.22989256,2618.4,2618.0,1.68290599]
[1726966440540,2.2607,2618.3,2618.1,0.04804782]
[1726966440743,0.2586079,2618.2,2617.8,1.68290599]
[1726966441115,0.2586079,2618.2,2617.9,0.04825393]
[1726966442617,0.2586079,2618.2,2617.8,1.68290599]
[1726966443002,0.2586079,2618.2,2617.9,0.04825393]
[1726966443403,0.2586079,2618.2,2617.8,1.68290599]
[1726966443831,0.2586079,2618.2,2617.9,0.04825393]
[1726966444035,2.35619751,2618.1,2617.9,0.04825393]
[1726966444352,2.35619751,2618.1,2617.2,0.5]
[1726966444656,2.2607,2618.1,2617.2,0.95122044]
[1726966445652,2.2607,2618.1,2617.5,1.68290599]
[1726966446003,2.2607,2618.1,2617.6,0.04848004]
[1726966446206,2.2607,2618.1,2617.2,0.95122044]
[1726966446207,2.2607,2618.1,2617.2,0.5]
[1726966446550,2.2607,2618.1,2617.8,3.0]
[1726966446847,2.2607,2618.1,2617.3,0.50000977]
[1726966447143,2.2607,2618.1,2617.7,1.68290599]
[1726966447444,2.48677,2618.1,2617.7,1.68290599]
[1726966447606,2.2607,2618.1,2617.8,0.04827388]
[1726966447951,0.0382256,2618.6,2618.1,5.0]
[1726966448155,0.0382256,2618.6,2618.3,3.0]
[1726966448364,0.0382256,2618.6,2618.5,3.0]
[1726966448651,0.0382256,2618.6,2618.5,46.2141201]
[1726966448818,0.0382256,2618.6,2618.5,46.26161877]
[1726966449008,0.0382256,2618.6,2618.5,47.94452476]
[1726966449208,0.0382256,2618.6,2618.5,48.39827861]
[1726966450027,0.0382256,2618.6,2618.5,46.71537262]
[1726966451853,0.0382256,2618.6,2618.5,50.35492871]
[1726966456904,0.0382256,2618.6,2618.5,49.90117486]
[1726966461468,0.0382256,2618.6,2618.5,7.80964686]
[1726966461964,0.0382256,2618.6,2618.5,49.90117486]
[1726966462328,0.0382256,2619.4,2618.6,2.0]